[Event "RUS Rapid GP Top 16 2018"]
[Site "Khanty-Mansiysk"]
[Date "2018.12.01"]
[Round "2"]
[White "Maletina, Tatiana"]
[Black "Bocharov, Dmitry"]
[Result "0-1"]
[ECO "E81"]
[WhiteElo "2239"]
[BlackElo "2684"]
[Annotator "RC"]
[PlyCount "54"]
[EventDate "2018.12.01"]
[EventType "swiss"]
[EventCountry "RUS"]
[SourceTitle "playchess.com"]
[Source "ChessBase"]
[SourceQuality "1"]
[TimeControl "900+10"]

1. d4 {[%emt 0:00:00]} Nf6 {[%emt 0:00:00]} 2. c4 {[%emt 0:00:00]} g6 {[%emt 0:00:00]} 3. f3 {[%emt 0:00:00]} Bg7 {[%emt 0:01:37]} 4. e4 {[%emt 0:00:00]} O-O {[%emt 0:00:05]} 5. Nc3 {[%emt 0:00:24]} d6 {[%emt 0:00:16]} 6. Be3 {[%emt 0:00:03]} a6 {[%emt 0:00:43]} 7. Nge2 {[%emt 0:01:44]} c6 {[%emt 0:00:50]} 8. c5 {[%emt 0:02:00]} Nbd7 {[%emt 0:00:18]} 9. Nc1 {[%emt 0:01:09]} dxc5 {[%emt 0:02:51]} 10. dxc5 {[%emt 0:00:01]} Qc7 {[%emt 0:00:02]} 11. Nd3 {[%emt 0:01:22]} Rd8 {[%emt 0:02:02]} 12. Qc2 {[%emt 0:00:02]} Ne5 {[%emt 0:00:19]} 13. Nxe5 {[%emt 0:00:04]} Qxe5 {[%emt 0:00:01]} 14. Be2 {[%emt 0:00:19]} Nh5 {[%emt 0:00:21]} 15. g3 {[%emt 0:00:38]} Bh3 {[%emt 0:00:33]} 16. Kf2 {[%emt 0:01:03]} Nf6 {[%emt 0:01:38]} 17. Rad1 {[%emt 0:01:13]} Nd7 {[%emt 0:00:27]} 18. Na4 {[%emt 0:02:09]} Nf8 {[%emt 0:00:54]} 19. Nb6 {[%emt 0:00:53]} Rab8 {[%emt 0:00:14]} 20. Bf4 {[%emt 0:00:37]} Qxb2 {[%emt 0:00:43]} 21. Qxb2 {[%emt 0:00:02]} Bxb2 {[%emt 0:00:01]} 22. Bxb8 {[%emt 0:00:02]} Rxb8 {[%emt 0:00:02]} 23. Nc4 {[%emt 0:00:26]} Bc3 {[%emt 0:00:50]} 24. g4 {[%emt 0:00:07]} Ne6 {[%emt 0:00:06]} 25. Kg3 {[%emt 0:00:06]} g5 {[%emt 0:00:01]} 26. Rd7 {[%emt 0:02:19]} Nf4 {[%emt 0:00:39]} 27. Bf1 {[%emt 0:01:56]} Be1# {[%emt 0:00:10]} 0-1

[Event "RUS Rapid GP Top 16 2018"]
[Site "Khanty-Mansiysk"]
[Date "2018.12.01"]
[Round "4"]
[White "Kabanov, Nikolai"]
[Black "Kryakvin, Dmitry"]
[Result "1-0"]
[ECO "B13"]
[WhiteElo "2403"]
[BlackElo "2529"]
[Annotator "RC"]
[PlyCount "97"]
[EventDate "2018.12.01"]
[EventType "swiss"]
[EventCountry "RUS"]
[SourceTitle "playchess.com"]
[Source "ChessBase"]
[SourceQuality "1"]
[TimeControl "900+10"]

1. e4 {[%emt 0:00:00]} c6 {[%emt 0:00:00]} 2. d4 {[%emt 0:00:23]} d5 {[%emt 0:00:00]} 3. exd5 {[%emt 0:00:03]} cxd5 {[%emt 0:00:00]} 4. c3 {[%emt 0:00:03]} Nc6 {[%emt 0:00:31]} 5. Bf4 {[%emt 0:00:05]} Bf5 {[%emt 0:00:06]} 6. Nf3 {[%emt 0:00:09]} e6 {[%emt 0:00:09]} 7. Qb3 {[%emt 0:00:15]} Qd7 {[%emt 0:00:05]} 8. Nbd2 {[%emt 0:02:08]} Nge7 {[%emt 0:00:04]} 9. Be2 {[%emt 0:00:31]} Ng6 {[%emt 0:00:04]} 10. Bg3 {[%emt 0:00:05]} Bd6 {[%emt 0:00:02]} 11. Bxd6 {[%emt 0:01:03]} Qxd6 {[%emt 0:00:02]} 12. g3 {[%emt 0:00:06]} O-O {[%emt 0:00:33]} 13. h4 {[%emt 0:00:11]} e5 {[%emt 0:00:38]} 14. h5 {[%emt 0:00:24]} Nge7 {[%emt 0:00:06]} 15. dxe5 {[%emt 0:00:19]} Nxe5 {[%emt 0:00:01]} 16. Nxe5 {[%emt 0:00:46]} Qxe5 {[%emt 0:00:04]} 17. Nf3 {[%emt 0:00:17]} Qc7 {[%emt 0:01:39]} 18. h6 {[%emt 0:00:27]} g6 {[%emt 0:00:16]} 19. Nd4 {[%emt 0:02:20]} Be4 {[%emt 0:00:13]} 20. Rh4 {[%emt 0:01:38]} Nc6 {[%emt 0:00:16]} 21. Rd1 {[%emt 0:00:45]} Rae8 {[%emt 0:00:32]} 22. Kf1 {[%emt 0:00:10]} f5 {[%emt 0:00:42]} 23. Nb5 {[%emt 0:04:48]} Qe5 {[%emt 0:01:07]} 24. f4 {[%emt 0:00:55]} Qf6 {[%emt 0:00:41]} 25. Nc7 {[%emt 0:00:21]} Re7 {[%emt 0:03:28]} 26. Nxd5 {[%emt 0:00:04]} Bxd5 {[%emt 0:00:01]} 27. Qxd5+ {[%emt 0:00:03]} Kh8 {[%emt 0:00:01]} 28. Rh2 {[%emt 0:00:09]} g5 {[%emt 0:00:41]} 29. Qd6 {[%emt 0:00:12]} Re6 {[%emt 0:01:14]} 30. fxg5 {[%emt 0:00:02]} Qf7 {[%emt 0:00:03]} 31. Qd5 {[%emt 0:00:25]} Qg6 {[%emt 0:01:09]} 32. Bh5 {[%emt 0:00:10]} Qg8 {[%emt 0:00:26]} 33. Re2 {[%emt 0:00:02]} Rxe2 {[%emt 0:00:59]} 34. Qxg8+ {[%emt 0:00:07]} Rxg8 {[%emt 0:00:01]} 35. Bxe2 {[%emt 0:00:05]} Rxg5 {[%emt 0:00:01]} 36. Rd7 {[%emt 0:00:08]} Rxg3 {[%emt 0:00:47]} 37. Bb5 {[%emt 0:00:41]} Rg6 {[%emt 0:00:26]} 38. Bxc6 {[%emt 0:00:02]} bxc6 {[%emt 0:00:00]} 39. Rxa7 {[%emt 0:00:38]} Rxh6 {[%emt 0:00:02]} 40. a4 {[%emt 0:00:07]} Rh1+ {[%emt 0:01:31]} 41. Kg2 {[%emt 0:00:03]} Rb1 {[%emt 0:00:02]} 42. b4 {[%emt 0:00:08]} Rb3 {[%emt 0:00:04]} 43. Rc7 {[%emt 0:00:17]} Rxc3 {[%emt 0:00:46]} 44. b5 {[%emt 0:00:02]} Rc2+ {[%emt 0:00:25]} 45. Kf3 {[%emt 0:00:03]} Rc3+ {[%emt 0:00:01]} 46. Kf4 {[%emt 0:00:27]} Rc4+ {[%emt 0:00:01]} 47. Kxf5 {[%emt 0:00:01]} cxb5 {[%emt 0:00:59]} 48. Rxc4 {[%emt 0:00:02]} bxc4 {[%emt 0:00:01]} 49. Ke4 {[%emt 0:00:02]} 1-0

[Event "RUS Rapid GP Top 16 2018"]
[Site "Khanty-Mansiysk"]
[Date "2018.12.02"]
[Round "6"]
[White "Demidov, Mikhail"]
[Black "Ponkratov, Pavel"]
[Result "1/2-1/2"]
[ECO "A21"]
[WhiteElo "2586"]
[BlackElo "2658"]
[Annotator "RC"]
[PlyCount "84"]
[EventDate "2018.12.01"]
[EventType "swiss"]
[EventCountry "RUS"]
[SourceTitle "playchess.com"]
[Source "ChessBase"]
[SourceQuality "1"]
[TimeControl "900+10"]

1. c4 {[%emt 0:00:00]} e5 {[%emt 0:00:00]} 2. Nc3 {[%emt 0:00:00]} d6 {[%emt 0:00:05]} 3. d4 {[%emt 0:00:01]} Be7 {[%emt 0:00:59]} 4. e3 {[%emt 0:00:25]} f5 {[%emt 0:00:12]} 5. Bd3 {[%emt 0:00:05]} Nf6 {[%emt 0:00:14]} 6. Nge2 {[%emt 0:00:04]} O-O {[%emt 0:00:16]} 7. O-O {[%emt 0:00:05]} c6 {[%emt 0:00:07]} 8. f3 {[%emt 0:00:02]} Na6 {[%emt 0:00:36]} 9. a3 {[%emt 0:00:11]} Nc7 {[%emt 0:00:02]} 10. Qc2 {[%emt 0:00:25]} g6 {[%emt 0:00:03]} 11. b4 {[%emt 0:00:02]} Be6 {[%emt 0:00:02]} 12. Bb2 {[%emt 0:00:58]} Qe8 {[%emt 0:00:02]} 13. dxe5 {[%emt 0:02:25]} dxe5 {[%emt 0:00:02]} 14. Nd1 {[%emt 0:00:02]} Nd7 {[%emt 0:00:07]} 15. Nf2 {[%emt 0:00:29]} Bf6 {[%emt 0:00:08]} 16. e4 {[%emt 0:00:17]} f4 {[%emt 0:00:09]} 17. c5 {[%emt 0:00:01]} g5 {[%emt 0:00:05]} 18. Bc4 {[%emt 0:00:02]} h5 {[%emt 0:01:04]} 19. Rfd1 {[%emt 0:01:05]} Qf7 {[%emt 0:00:49]} 20. Bxe6 {[%emt 0:00:22]} Nxe6 {[%emt 0:00:02]} 21. Rd6 {[%emt 0:01:30]} Rfd8 {[%emt 0:00:02]} 22. Rad1 {[%emt 0:00:05]} Ndf8 {[%emt 0:00:01]} 23. Qc4 {[%emt 0:01:30]} a5 {[%emt 0:00:57]} 24. h3 {[%emt 0:04:19]} Rxd6 {[%emt 0:01:38]} 25. Rxd6 {[%emt 0:00:19]} Nc7 {[%emt 0:02:13]} 26. Qc2 {[%emt 0:01:09]} axb4 {[%emt 0:01:09]} 27. axb4 {[%emt 0:00:02]} Nb5 {[%emt 0:00:06]} 28. Rd1 {[%emt 0:00:10]} Ne6 {[%emt 0:00:14]} 29. Ra1 {[%emt 0:00:14]} Re8 {[%emt 0:00:36]} 30. Qc4 {[%emt 0:00:52]} Nec7 {[%emt 0:00:49]} 31. Qc2 {[%emt 0:00:14]} Na6 {[%emt 0:00:18]} 32. Nd3 {[%emt 0:00:15]} Qg7 {[%emt 0:00:02]} 33. Qc4+ {[%emt 0:00:31]} Qf7 {[%emt 0:00:10]} 34. Qc2 {[%emt 0:00:01]} Kh7 {[%emt 0:00:03]} 35. Rd1 {[%emt 0:01:03]} Kh6 {[%emt 0:00:06]} 36. Qd2 {[%emt 0:00:49]} Qg7 {[%emt 0:00:23]} 37. Kf1 {[%emt 0:00:30]} Rd8 {[%emt 0:00:10]} 38. Qc2 {[%emt 0:00:03]} Rg8 {[%emt 0:01:10]} 39. Qc4 {[%emt 0:00:13]} Rd8 {[%emt 0:01:40]} 40. Ke1 {[%emt 0:00:21]} Nbc7 {[%emt 0:00:25]} 41. Nf2 {[%emt 0:00:10]} Rxd1+ {[%emt 0:00:39]} 42. Kxd1 {[%emt 0:00:10]} Qd7+ {[%emt 0:01:41]} 1/2-1/2

[Event "RUS Rapid GP Top 16 2018"]
[Site "Khanty-Mansiysk"]
[Date "2018.12.02"]
[Round "6"]
[White "Shuvalova, Polina"]
[Black "Sarana, Alexey"]
[Result "0-1"]
[ECO "B51"]
[WhiteElo "2411"]
[BlackElo "2617"]
[Annotator "RC"]
[PlyCount "158"]
[EventDate "2018.12.01"]
[EventType "swiss"]
[EventCountry "RUS"]
[SourceTitle "playchess.com"]
[Source "ChessBase"]
[SourceQuality "1"]
[TimeControl "900+10"]

1. e4 {[%emt 0:00:00]} c5 {[%emt 0:00:00]} 2. Nf3 {[%emt 0:00:00]} d6 {[%emt 0:00:00]} 3. Bb5+ {[%emt 0:00:00]} Nd7 {[%emt 0:00:00]} 4. O-O {[%emt 0:00:05]} a6 {[%emt 0:00:00]} 5. Bd3 {[%emt 0:00:01]} Ngf6 {[%emt 0:00:00]} 6. Re1 {[%emt 0:00:07]} g6 {[%emt 0:00:00]} 7. c3 {[%emt 0:00:02]} Bh6 {[%emt 0:00:02]} 8. Bf1 {[%emt 0:01:18]} Ne5 {[%emt 0:00:03]} 9. Nxe5 {[%emt 0:00:02]} dxe5 {[%emt 0:00:02]} 10. a4 {[%emt 0:00:06]} O-O {[%emt 0:00:09]} 11. Na3 {[%emt 0:00:03]} Be6 {[%emt 0:00:30]} 12. Nc4 {[%emt 0:01:18]} Qc7 {[%emt 0:00:50]} 13. d4 {[%emt 0:01:03]} Bxc1 {[%emt 0:00:18]} 14. Rxc1 {[%emt 0:00:05]} cxd4 {[%emt 0:00:19]} 15. cxd4 {[%emt 0:00:06]} exd4 {[%emt 0:00:13]} 16. Qxd4 {[%emt 0:01:18]} Rfd8 {[%emt 0:00:53]} 17. Qe3 {[%emt 0:02:21]} Ng4 {[%emt 0:01:31]} 18. Qg3 {[%emt 0:00:11]} Qxg3 {[%emt 0:00:19]} 19. hxg3 {[%emt 0:00:03]} Bxc4 {[%emt 0:01:30]} 20. Rxc4 {[%emt 0:00:48]} Rac8 {[%emt 0:00:34]} 21. Rxc8 {[%emt 0:01:31]} Rxc8 {[%emt 0:00:01]} 22. Be2 {[%emt 0:00:01]} h5 {[%emt 0:02:12]} 23. f3 {[%emt 0:01:47]} Nf6 {[%emt 0:00:02]} 24. b3 {[%emt 0:00:24]} Rc3 {[%emt 0:00:21]} 25. Bc4 {[%emt 0:00:16]} Nd7 {[%emt 0:00:19]} 26. Kf2 {[%emt 0:02:20]} Nc5 {[%emt 0:02:45]} 27. Re3 {[%emt 0:00:23]} Rc2+ {[%emt 0:00:03]} 28. Re2 {[%emt 0:00:07]} Rc3 {[%emt 0:00:01]} 29. Re3 {[%emt 0:00:02]} Nxa4 {[%emt 0:00:05]} 30. Bxa6 {[%emt 0:01:31]} bxa6 {[%emt 0:00:15]} 31. bxa4 {[%emt 0:00:01]} Rc4 {[%emt 0:00:02]} 32. Ra3 {[%emt 0:01:05]} a5 {[%emt 0:00:01]} 33. Ke3 {[%emt 0:00:37]} Kg7 {[%emt 0:00:04]} 34. Kd3 {[%emt 0:00:18]} Rb4 {[%emt 0:00:02]} 35. Ra2 {[%emt 0:00:04]} Kf6 {[%emt 0:00:06]} 36. Ke3 {[%emt 0:00:24]} Kg5 {[%emt 0:00:04]} 37. Kf2 {[%emt 0:00:21]} Kf6 {[%emt 0:00:27]} 38. Ke3 {[%emt 0:00:01]} Ke5 {[%emt 0:00:05]} 39. Ra3 {[%emt 0:00:12]} e6 {[%emt 0:00:53]} 40. f4+ {[%emt 0:00:33]} Kf6 {[%emt 0:00:02]} 41. Kf3 {[%emt 0:00:03]} g5 {[%emt 0:00:10]} 42. Ke3 {[%emt 0:00:21]} Kg6 {[%emt 0:00:39]} 43. Kf3 {[%emt 0:00:16]} Rc4 {[%emt 0:00:11]} 44. Ke3 {[%emt 0:00:18]} Rc2 {[%emt 0:00:08]} 45. fxg5 {[%emt 0:00:18]} Rxg2 {[%emt 0:00:03]} 46. Kd4 {[%emt 0:00:14]} Rb2 {[%emt 0:01:01]} 47. Kc5 {[%emt 0:00:10]} Rb4 {[%emt 0:00:08]} 48. e5 {[%emt 0:00:02]} Kxg5 {[%emt 0:00:10]} 49. Rf3 {[%emt 0:00:18]} Kg6 {[%emt 0:00:21]} 50. Ra3 {[%emt 0:00:07]} Kg7 {[%emt 0:00:20]} 51. Kd6 {[%emt 0:00:04]} Kf8 {[%emt 0:00:03]} 52. Kd7 {[%emt 0:00:07]} Rc4 {[%emt 0:00:29]} 53. Kd6 {[%emt 0:00:18]} Ke8 {[%emt 0:00:07]} 54. Ra2 {[%emt 0:00:14]} Rd4+ {[%emt 0:00:10]} 55. Kc6 {[%emt 0:00:05]} Rb4 {[%emt 0:00:40]} 56. Kd6 {[%emt 0:00:08]} Kf8 {[%emt 0:00:22]} 57. Ra3 {[%emt 0:00:04]} Re4 {[%emt 0:00:02]} 58. Ra2 {[%emt 0:00:07]} Kg7 {[%emt 0:00:20]} 59. Ra3 {[%emt 0:00:15]} Kg6 {[%emt 0:00:00]} 60. Ra2 {[%emt 0:00:06]} f6 {[%emt 0:00:29]} 61. exf6 {[%emt 0:00:25]} Kxf6 {[%emt 0:00:09]} 62. Ra3 {[%emt 0:00:07]} Kg5 {[%emt 0:00:07]} 63. Ra2 {[%emt 0:00:07]} Kg4 {[%emt 0:00:16]} 64. Ra3 {[%emt 0:00:02]} Kg5 {[%emt 0:00:51]} 65. Ra2 {[%emt 0:00:14]} Kf5 {[%emt 0:00:02]} 66. Ra3 {[%emt 0:00:03]} Rd4+ {[%emt 0:00:06]} 67. Kc5 {[%emt 0:00:06]} Rb4 {[%emt 0:00:19]} 68. Ra1 {[%emt 0:00:18]} e5 {[%emt 0:00:07]} 69. Rh1 {[%emt 0:00:20]} Kg5 {[%emt 0:00:04]} 70. Re1 {[%emt 0:00:12]} e4 {[%emt 0:00:02]} 71. Ra1 {[%emt 0:00:13]} e3 {[%emt 0:00:27]} 72. Re1 {[%emt 0:00:08]} Re4 {[%emt 0:00:02]} 73. Kd5 {[%emt 0:00:05]} Re8 {[%emt 0:00:02]} 74. Kd4 {[%emt 0:00:08]} Kg4 {[%emt 0:00:01]} 75. Kd3 {[%emt 0:00:08]} e2 {[%emt 0:00:25]} 76. Kd2 {[%emt 0:00:06]} Kxg3 {[%emt 0:00:03]} 77. Rh1 {[%emt 0:00:22]} e1=Q+ {[%emt 0:00:05]} 78. Rxe1 {[%emt 0:00:02]} Rxe1 {[%emt 0:00:01]} 79. Kxe1 {[%emt 0:00:01]} Kg2 {[%emt 0:00:01]} 0-1

[Event "RUS Rapid GP Top 16 2018"]
[Site "Khanty-Mansiysk"]
[Date "2018.12.02"]
[Round "7"]
[White "Pridorozhni, Aleksei"]
[Black "Demidov, Mikhail"]
[Result "1-0"]
[ECO "A21"]
[WhiteElo "2631"]
[BlackElo "2586"]
[Annotator "RC"]
[PlyCount "135"]
[EventDate "2018.12.01"]
[EventType "swiss"]
[EventCountry "RUS"]
[SourceTitle "playchess.com"]
[Source "ChessBase"]
[SourceQuality "1"]
[TimeControl "900+10"]

1. c4 {[%emt 0:00:00]} e5 {[%emt 0:00:13]} 2. Nc3 {[%emt 0:00:00]} Bb4 {[%emt 0:00:02]} 3. g3 {[%emt 0:00:20]} Bxc3 {[%emt 0:00:02]} 4. bxc3 {[%emt 0:00:03]} d6 {[%emt 0:00:01]} 5. Bg2 {[%emt 0:00:03]} Ne7 {[%emt 0:00:02]} 6. d3 {[%emt 0:00:17]} O-O {[%emt 0:00:03]} 7. Nh3 {[%emt 0:00:22]} Nbc6 {[%emt 0:00:16]} 8. O-O {[%emt 0:00:14]} h6 {[%emt 0:01:35]} 9. f4 {[%emt 0:00:04]} Be6 {[%emt 0:00:40]} 10. Rb1 {[%emt 0:00:59]} Rb8 {[%emt 0:00:24]} 11. Nf2 {[%emt 0:00:48]} f5 {[%emt 0:00:22]} 12. fxe5 {[%emt 0:00:35]} dxe5 {[%emt 0:00:10]} 13. e4 {[%emt 0:00:34]} f4 {[%emt 0:04:19]} 14. Qe2 {[%emt 0:00:11]} fxg3 {[%emt 0:00:39]} 15. hxg3 {[%emt 0:00:02]} b6 {[%emt 0:00:10]} 16. Be3 {[%emt 0:00:30]} Qd6 {[%emt 0:00:26]} 17. Bh3 {[%emt 0:02:09]} Bxh3 {[%emt 0:00:45]} 18. Nxh3 {[%emt 0:00:02]} Na5 {[%emt 0:00:09]} 19. Kg2 {[%emt 0:03:31]} c5 {[%emt 0:00:08]} 20. Rxf8+ {[%emt 0:00:18]} Rxf8 {[%emt 0:00:02]} 21. Nf2 {[%emt 0:00:02]} Nac6 {[%emt 0:00:05]} 22. Rd1 {[%emt 0:00:28]} Qe6 {[%emt 0:00:06]} 23. Bc1 {[%emt 0:00:10]} Qg6 {[%emt 0:00:58]} 24. Rh1 {[%emt 0:00:08]} Kh7 {[%emt 0:00:43]} 25. Ng4 {[%emt 0:00:17]} Ng8 {[%emt 0:00:02]} 26. Ne3 {[%emt 0:00:18]} Nge7 {[%emt 0:00:55]} 27. Rh5 {[%emt 0:00:30]} Ng8 {[%emt 0:00:46]} 28. Nd5 {[%emt 0:00:23]} Qe6 {[%emt 0:00:20]} 29. a4 {[%emt 0:00:31]} Nf6 {[%emt 0:00:38]} 30. Rh4 {[%emt 0:00:27]} Ne7 {[%emt 0:00:45]} 31. Be3 {[%emt 0:00:41]} Ng6 {[%emt 0:00:12]} 32. Rh1 {[%emt 0:00:02]} Qc6 {[%emt 0:01:45]} 33. Qd1 {[%emt 0:01:32]} Qd7 {[%emt 0:00:31]} 34. a5 {[%emt 0:00:36]} Qc6 {[%emt 0:00:39]} 35. axb6 {[%emt 0:00:08]} axb6 {[%emt 0:00:01]} 36. Bg5 {[%emt 0:00:09]} Nxd5 {[%emt 0:01:18]} 37. cxd5 {[%emt 0:00:06]} Qd6 {[%emt 0:00:01]} 38. Be3 {[%emt 0:00:17]} Ra8 {[%emt 0:00:12]} 39. Rf1 {[%emt 0:00:13]} Kg8 {[%emt 0:00:26]} 40. Rf2 {[%emt 0:00:13]} Rf8 {[%emt 0:00:08]} 41. Rb2 {[%emt 0:00:12]} Rb8 {[%emt 0:00:09]} 42. Qg4 {[%emt 0:00:11]} Nf8 {[%emt 0:00:09]} 43. c4 {[%emt 0:00:37]} Ra8 {[%emt 0:00:13]} 44. Rf2 {[%emt 0:00:55]} Nh7 {[%emt 0:00:23]} 45. Qh5 {[%emt 0:00:33]} Rf8 {[%emt 0:00:21]} 46. Rxf8+ {[%emt 0:00:06]} Kxf8 {[%emt 0:00:01]} 47. Qf5+ {[%emt 0:00:04]} Nf6 {[%emt 0:00:01]} 48. Bd2 {[%emt 0:00:50]} Ke7 {[%emt 0:00:16]} 49. g4 {[%emt 0:00:11]} Ke8 {[%emt 0:00:21]} 50. Qg6+ {[%emt 0:00:41]} Kf8 {[%emt 0:00:03]} 51. Bc3 {[%emt 0:00:09]} Kg8 {[%emt 0:00:12]} 52. Kf3 {[%emt 0:00:11]} Qf8 {[%emt 0:00:11]} 53. Ke2 {[%emt 0:00:04]} Qe7 {[%emt 0:00:03]} 54. Kd2 {[%emt 0:00:18]} Qc7 {[%emt 0:00:23]} 55. Qf5 {[%emt 0:00:09]} Nd7 {[%emt 0:00:03]} 56. Qe6+ {[%emt 0:00:05]} Kh7 {[%emt 0:00:05]} 57. Qe7 {[%emt 0:00:12]} Kg6 {[%emt 0:00:16]} 58. Ke3 {[%emt 0:00:09]} Kh7 {[%emt 0:00:08]} 59. d6 {[%emt 0:00:17]} Qc8 {[%emt 0:00:13]} 60. Bxe5 {[%emt 0:00:07]} Nxe5 {[%emt 0:00:04]} 61. Qxe5 {[%emt 0:00:02]} Kh8 {[%emt 0:00:13]} 62. Qf5 {[%emt 0:00:08]} Qd8 {[%emt 0:00:08]} 63. e5 {[%emt 0:00:17]} Kg8 {[%emt 0:00:20]} 64. Qe6+ {[%emt 0:00:12]} Kf8 {[%emt 0:00:03]} 65. d7 {[%emt 0:00:13]} Qg5+ {[%emt 0:00:04]} 66. Ke4 {[%emt 0:00:03]} Qd8 {[%emt 0:00:01]} 67. Qd6+ {[%emt 0:00:14]} Kg8 {[%emt 0:00:07]} 68. e6 {[%emt 0:00:03]} 1-0